bitfinex-derivatives/quotes_ETHF0:USTF0_20250810
["timestamp","ask_amount","ask_price","bid_price","bid_amount"]
[1754789445413,0.3761,4298.7,4298.6,2.5902]
[1754789445808,0.5469643,4299.3,4299.2,1.0123]
[1754789446011,1.6211,4299.4,4299.3,2.5902]
[1754789446721,1.7249,4299.4,4299.3,2.5902]
[1754789447817,0.9444,4299.4,4299.3,2.5902]
[1754789448412,1.6211,4299.4,4299.3,2.5902]
[1754789448612,1.7249,4299.4,4299.3,2.5902]
[1754789448805,1.7249,4299.4,4298.9,3.2078]
[1754789449009,1.7249,4299.1,4299.0,0.5674]
[1754789449414,1.6211,4299.1,4299.0,2.5902]
[1754789449613,3.2078,4299.9,4299.5,0.46502]
[1754789449813,5.39769,4299.9,4299.8,2.5902]
[1754789450016,5.39769,4299.9,4299.8,0.9266]
[1754789450213,0.46502,4299.6,4299.2,0.46505]
[1754789450508,8.05615976,4299.9,4299.2,1.39165]
[1754789450509,0.5,4299.4,4299.2,1.39165]
[1754789450718,0.9444,4299.3,4299.2,3.05525]
[1754789451614,1.6211,4299.3,4299.2,3.05525]
[1754789451817,0.5,4299.4,4299.3,1.5797]
[1754789452005,2.2249,4299.4,4299.3,2.5902]
[1754789452206,2.2249,4299.4,4299.3,0.5674]
[1754789452916,2.25485,4299.3,4299.2,3.58969999]
[1754789453314,5.2623047,4299.3,4299.2,3.58969999]
[1754789454119,5.80812155,4299.3,4299.2,3.58969999]
[1754789459715,5.80812155,4299.3,4299.2,4.15709999]
[1754789462918,5.74322155,4299.3,4299.2,3.58969999]
[1754789463219,5.80812155,4299.3,4299.2,3.58969999]
[1754789464420,5.2623047,4299.3,4299.2,3.58969999]
[1754789464720,5.2623047,4299.3,4299.2,4.15709999]
[1754789465814,5.2623047,4299.3,4299.2,4.65709999]
[1754789465815,6.24357688,4299.3,4299.2,4.65709999]
[1754789468520,6.24357688,4299.3,4299.2,5.02639999]
[1754789469613,4.51867688,4299.3,4299.2,5.02639999]
[1754789469814,4.05362688,4299.3,4299.2,6.64249999]
[1754789470015,1.04617218,4299.3,4299.2,6.64249999]
[1754789470219,4.85187919,4299.3,4299.2,6.64249999]
[1754789470723,5.39805137,4299.3,4299.2,6.64249999]
[1754789471519,4.97665137,4299.3,4299.2,6.64249999]
[1754789471819,3.49627919,4299.3,4299.2,6.64249999]
[1754789472413,0.5,4299.3,4299.2,6.64249999]
[1754789472622,0.46501,4299.7,4299.6,1.0006]
[1754789472822,0.46501,4299.7,4299.6,2.5146]
[1754789473023,3.52970971,4299.7,4299.6,2.5146]
[1754789473218,4.07588189,4299.7,4299.6,2.5146]
[1754789473622,3.52970971,4299.7,4299.6,2.5146]
[1754789474222,2.44595,4299.3,4299.2,5.82969999]
[1754789474424,2.44595,4299.3,4299.2,6.60429999]
[1754789474723,5.48656912,4299.3,4299.2,6.60429999]
[1754789474924,6.5327413,4299.3,4299.2,6.60429999]
[1754789476324,6.0676913,4299.3,4299.2,6.60429999]
[1754789476518,4.0867913,4299.3,4299.2,6.60429999]
[1754789476714,3.54061912,4299.3,4299.2,6.60429999]
[1754789476924,0.54617218,4299.6,4299.5,1.0006]
[1754789477225,0.54617218,4300.2,4300.1,2.5146]
[1754789477422,0.46492,4300.5,4300.4,1.4092]
[1754789477626,1.45452,4300.5,4300.4,2.5146]
[1754789477826,5.53622126,4300.5,4300.4,2.5146]
[1754789478125,6.08239344,4300.5,4300.4,2.5146]
[1754789478323,5.66099344,4300.5,4300.4,2.5146]
[1754789478520,4.10149344,4300.5,4300.4,2.5146]
[1754789478720,0.54617218,4300.7,4300.6,1.0006]
[1754789478923,3.2078,4300.9,4300.8,1.0006]
[1754789479229,3.67267,4300.9,4300.8,2.5146]
[1754789479426,3.2078,4300.9,4300.8,2.5146]
[1754789481221,3.2078,4301.0,4300.9,4.59029999]
[1754789481522,3.2078,4301.0,4300.9,6.10429999]
[1754789481829,0.54617218,4301.2,4301.1,2.5146]
[1754789482024,3.2078,4301.7,4301.6,1.0006]
[1754789482325,3.2078,4302.3,4302.2,1.6161]
[1754789482526,3.2078,4302.3,4302.2,2.5146]
[1754789482824,3.2078,4303.1,4302.4,0.46471]
[1754789483033,1.667991,4304.5,4303.2,0.4086]
[1754789483034,0.46456,4303.8,4303.2,0.4086]
[1754789483227,3.2078,4304.6,4303.0,3.2078]
[1754789483228,2.1234,4303.9,4303.8,1.9854]
[1754789483428,5.53294704,4303.9,4303.8,0.6313]
[1754789483722,2.5448,4303.9,4303.8,0.6313]
[1754789484029,0.9896,4303.5,4303.4,1.9854]
[1754789484326,0.9896,4303.5,4303.0,3.2078]
[1754789484327,2.5448,4303.2,4303.1,1.9854]
[1754789484730,0.5639,4303.2,4303.1,1.9854]
[1754789484923,0.5639,4303.2,4303.1,2.5146]
[1754789485121,0.46459,4303.5,4303.4,2.5146]
[1754789485426,2.01809,4303.5,4303.4,1.9854]
[1754789485628,4.437778,4303.5,4303.2,3.58969999]
[1754789485826,2.5448,4303.4,4303.3,1.9854]
[1754789486227,1.6106,4303.3,4303.2,3.58969999]
[1754789486429,2.5448,4303.3,4303.2,3.58969999]
[1754789486627,3.34491394,4303.3,4303.2,4.59029999]
[1754789486928,2.5448,4303.3,4303.2,5.57509999]
[1754789487131,4.6182901,4303.3,4303.2,5.57509999]
[1754789487330,0.9135,4303.3,4303.2,6.10429999]
[1754789487633,0.3496,4303.3,4303.2,5.11949999]
[1754789487828,2.5448,4303.3,4303.2,4.16589999]
[1754789488028,2.5448,4303.3,4303.2,5.20579999]
[1754789488228,2.5448,4303.3,4303.2,5.57509999]
[1754789488830,5.60338619,4303.3,4303.2,3.11977999]
[1754789489234,5.60338619,4303.3,4303.2,2.57171999]
[1754789489538,5.60338619,4303.3,4303.2,1.55873999]
[1754789489734,1.5552,4302.4,4302.2,0.9848]
[1754789490037,5.56908274,4302.3,4302.2,1.9854]
[1754789490334,2.5448,4302.3,4302.2,1.9854]
[1754789490526,5.56908274,4302.3,4302.2,1.9854]
[1754789491637,2.5448,4301.9,4301.8,1.9854]
[1754789492832,2.5448,4301.9,4301.8,0.2653]
[1754789493534,8.75188261,4301.9,4301.8,0.2653]
[1754789493836,2.5448,4301.5,4301.4,0.005]
[1754789494133,5.5433955,4301.5,4301.4,0.005]
[1754789494332,1.16208,4301.3,4300.3,3.2078]
[1754789494537,0.9896,4300.5,4300.4,1.5768]
[1754789494734,1.65412,4300.5,4300.4,1.9854]
[1754789494931,1.1892,4300.5,4300.4,1.9854]
[1754789495136,0.9135,4300.5,4300.4,2.5448]
[1754789495937,0.9135,4300.5,4300.4,6.13449999]
[1754789496139,0.5626,4301.5,4301.1,2.0202]
[1754789496336,1.02741,4301.5,4301.4,1.0437]
[1754789496536,1.38741,4301.5,4301.4,1.4503]
[1754789496736,4.39707638,4301.5,4301.4,2.0202]
[1754789496935,3.28856638,4301.5,4300.7,0.5594]
[1754789497133,3.04585,4301.1,4301.0,0.6532]
[1754789497440,1.21707,4300.9,4300.5,0.9765]
[1754789497737,1.21707,4300.9,4300.8,2.0202]
[1754789497738,2.05857,4300.9,4300.8,2.0202]
[1754789498535,0.46492,4300.5,4300.4,5.60989999]
[1754789498735,2.581,4300.5,4300.4,5.60989999]
[1754789501544,1.5937,4300.5,4300.4,6.16929999]
[1754789502336,0.5626,4300.8,4300.7,1.0437]
[1754789502536,0.5626,4300.8,4300.7,2.5796]
[1754789502732,3.54737005,4300.8,4300.7,2.5796]
[1754789502937,0.46485,4301.1,4300.8,0.5699]
[1754789503144,1.5937,4301.1,4301.0,2.0202]
[1754789503343,3.2078,4301.2,4301.0,2.5796]
[1754789503638,4.8015,4301.2,4301.1,2.5796]
[1754789503831,5.7888,4301.2,4301.1,2.0202]
[1754789504242,3.7704,4301.2,4301.1,2.5796]
[1754789504439,0.9873,4301.6,4301.2,0.4066]
[1754789504644,0.9226,4301.5,4301.4,2.0202]
[1754789504845,3.90930618,4301.5,4301.4,2.0202]
[1754789505243,0.005,4301.8,4301.6,1.0437]
[1754789505448,0.005,4301.8,4301.7,2.5796]
[1754789506446,0.5676,4301.8,4301.7,2.5796]
[1754789506647,0.5676,4301.8,4301.7,0.2728]
[1754789506648,2.586,4301.8,4301.7,0.2728]
[1754789507047,2.586,4301.8,4301.7,2.0202]
[1754789508648,2.581,4301.5,4301.4,5.60989999]
[1754789509143,2.581,4301.5,4301.4,3.58969999]
[1754789509648,2.581,4301.5,4301.4,5.03999999]
[1754789510142,0.5676,4301.8,4301.4,5.60989999]
[1754789510346,0.9226,4301.7,4301.6,2.0202]
[1754789510650,4.5641571,4301.7,4301.6,2.0202]
[1754789510848,5.5514571,4301.7,4301.6,2.0202]
[1754789512047,2.581,4301.5,4301.4,4.24289999]
[1754789512749,2.581,4301.5,4301.4,5.60989999]
[1754789515944,5.61948865,4301.5,4301.4,4.24289999]
[1754789516852,5.61948865,4301.5,4301.4,5.60989999]
[1754789519353,3.60108865,4301.5,4301.4,5.60989999]
[1754789519655,0.91143131,4301.8,4301.7,1.4503]
[1754789519859,0.365,4301.8,4301.7,2.5796]
[1754789520157,0.9276,4301.8,4301.7,2.5796]
[1754789520357,1.5987,4301.8,4301.7,6.16929999]
[1754789520555,2.586,4301.8,4301.7,6.16929999]
[1754789520753,0.005,4301.8,4301.7,6.66929999]
[1754789524467,0.9276,4301.8,4301.7,6.66929999]
[1754789524659,1.3198,4301.8,4301.7,6.66929999]
[1754789524961,0.9276,4301.8,4301.7,7.13408999]
[1754789525153,0.005,4301.8,4301.7,7.13408999]
[1754789525961,0.923,4301.8,4301.7,7.13408999]
[1754789526163,2.5665,4301.8,4301.7,7.13408999]
[1754789526567,0.5578,4301.8,4301.7,7.13408999]
[1754789526866,0.005,4301.8,4301.7,7.13408999]
[1754789527264,2.1254,4301.8,4301.7,7.13408999]
[1754789527460,2.5473,4301.8,4301.7,6.10989999]
[1754789528165,0.5578,4301.8,4301.7,6.61049999]
[1754789529459,2.5473,4301.8,4301.7,6.07989999]
[1754789530962,2.5473,4301.8,4301.7,4.08969999]
[1754789531168,5.53174745,4301.8,4301.7,4.08969999]
[1754789534276,6.07856897,4301.8,4301.7,4.08969999]
[1754789537072,6.07865019,4301.8,4301.7,4.08969999]
[1754789537470,6.07865019,4301.8,4301.7,6.56799999]
[1754789537671,0.005,4301.8,4301.7,6.56799999]
[1754789538769,0.5468279,4302.5,4301.7,6.56799999]
[1754789538968,1.291,4302.5,4302.4,1.5318]
[1754789539173,4.64768183,4302.5,4302.4,1.5318]
[1754789539371,5.62648183,4302.5,4302.4,1.0012]
[1754789539570,5.62648183,4302.5,4302.4,1.9477]
[1754789540075,3.08418183,4302.5,4302.4,1.9477]
[1754789540276,3.63698183,4302.5,4302.4,6.06799999]
[1754789540477,2.5423,4302.5,4302.4,5.53739999]
[1754789540669,5.61065873,4302.5,4302.4,5.53739999]
[1754789541171,0.918,4302.5,4302.4,6.53270999]
[1754789541380,0.918,4302.5,4302.4,6.06799999]
[1754789544274,1.5635,4303.1,4303.0,1.0012]
[1754789544479,2.1204,4303.1,4303.0,1.9477]
[1754789544776,0.4219,4303.8,4303.4,0.4646]
[1754789545076,5.51760778,4303.7,4303.6,1.9477]
[1754789545274,6.06396606,4303.7,4303.6,1.9477]
[1754789546478,2.5423,4304.0,4303.9,0.6502]
[1754789546775,6.13367435,4304.0,4303.9,1.0012]
[1754789547175,6.13367435,4304.0,4303.9,1.9477]
[1754789548080,5.58779899,4304.0,4303.9,1.9477]
[1754789548581,6.1332567,4304.0,4303.9,1.9477]
[1754789548772,3.04549899,4304.0,4303.9,2.4783]
[1754789549172,3.59829899,4304.0,4303.9,2.4783]
[1754789549370,0.5528,4304.3,4304.2,0.3615]
[1754789549572,0.918,4304.3,4304.2,2.4783]
[1754789549774,3.9396254,4304.3,4304.2,2.4783]
[1754789550186,4.3126254,4304.3,4304.2,6.06799999]
[1754789550483,1.5635,4304.3,4304.2,6.06799999]
[1754789551383,0.54545056,4304.7,4304.6,1.9477]
[1754789551580,4.6404,4305.3,4305.2,1.0012]
[1754789551780,4.6404,4305.3,4305.2,1.9477]
[1754789552085,9.2732863,4305.3,4305.2,1.9477]
[1754789552285,1.0107,4304.9,4304.8,1.9477]
[1754789552477,2.5423,4304.9,4304.8,1.9477]
[1754789552983,2.5423,4304.9,4304.8,1.0448]
[1754789553183,2.5423,4304.9,4304.8,1.4063]
[1754789553383,2.5423,4304.9,4304.8,1.9477]
[1754789553784,4.36881,4305.3,4304.2,6.79749999]
[1754789553979,2.5423,4304.3,4304.2,8.74519999]
[1754789554179,2.98472699,4305.2,4304.2,8.26321999]
[1754789554487,2.45395,4304.9,4304.8,1.9477]
[1754789554882,5.99147699,4304.9,4304.8,1.9477]
[1754789555077,0.918,4304.9,4304.8,2.4777]
[1754789555280,0.46438,4305.5,4305.2,0.2776]
[1754789555485,0.46436,4305.7,4305.6,2.4783]
[1754789555782,3.47270633,4305.7,4305.6,2.4783]
[1754789555983,5.92560633,4305.7,4305.6,1.9483]
[1754789556181,5.92560633,4305.7,4305.3,0.5207]
[1754789556382,2.4529,4305.6,4305.5,1.9483]
[1754789556684,0.46436,4305.7,4305.6,0.9476]
[1754789556887,0.6471,4305.8,4305.7,1.9483]
[1754789557188,0.7345,4305.5,4305.4,2.4783]
[1754789557385,0.5295,4305.6,4305.5,1.4776]
[1754789557684,1.01,4305.3,4305.2,1.5007]
[1754789557984,2.4529,4305.3,4305.2,0.5]
[1754789558287,0.8924,4305.3,4305.2,3.44271]
[1754789558481,0.46439,4305.4,4305.3,0.9476]
[1754789558690,1.47439,4305.4,4305.2,0.5]
[1754789558989,2.4529,4305.3,4305.2,2.4483]
[1754789559881,1.264,4305.3,4305.2,2.4483]
[1754789560083,0.5295,4305.3,4305.2,2.9783]
[1754789560283,1.5395,4305.3,4305.2,6.56799999]
[1754789560490,2.4529,4305.3,4305.2,5.09039999]
[1754789560691,2.4529,4305.3,4305.2,6.03799999]
[1754789561084,2.4529,4305.3,4305.2,4.08969999]
[1754789561586,2.4529,4305.3,4305.2,6.03799999]
[1754789561783,2.0592,4305.3,4305.2,6.03799999]
[1754789562381,2.4529,4305.3,4305.2,4.08969999]
[1754789562989,2.0592,4305.3,4305.2,6.03799999]
[1754789563288,0.5295,4305.5,4305.4,2.4783]
[1754789563484,0.8924,4305.5,4305.4,2.4783]
[1754789563688,4.2178,4305.9,4305.8,1.0007]
[1754789563884,5.6607,4305.9,4305.8,1.9483]
[1754789564480,2.4529,4305.5,4305.4,1.9483]
[1754789564779,2.4529,4305.3,4305.2,9.24579999]
[1754789566492,3.2078,4305.9,4305.2,9.24579999]
[1754789566693,5.6607,4305.9,4305.8,1.9483]
[1754789567390,1.01,4305.6,4305.5,1.0007]
[1754789567587,2.4529,4305.6,4305.5,1.5214]
[1754789567783,3.2078,4305.9,4305.5,1.5214]
[1754789567997,1.5395,4305.8,4305.7,1.9483]
[1754789568290,1.9072,4306.3,4305.7,1.9483]
[1754789568591,0.8924,4305.8,4305.7,2.4783]
[1754789568791,0.5295,4305.8,4305.7,2.4783]
[1754789569585,0.5295,4306.2,4306.1,1.0007]
[1754789569788,0.8924,4306.2,4306.1,1.5307]
[1754789570091,0.5295,4306.2,4306.1,1.99502]
[1754789570290,2.4529,4306.7,4306.6,1.5848]
[1754789570480,2.4529,4306.7,4306.6,1.9483]
[1754789570685,5.51867438,4306.7,4306.6,1.9483]
[1754789570986,2.4529,4306.7,4306.6,1.9483]
[1754789571290,0.8924,4306.7,4306.6,2.4783]
[1754789571989,0.5295,4306.7,4306.6,2.4783]
[1754789572197,0.8924,4307.1,4307.0,1.0007]
[1754789572388,0.8924,4307.1,4307.0,2.4783]
[1754789572583,2.0592,4307.2,4307.1,1.5214]
[1754789572789,1.264,4306.6,4306.5,2.41257]
[1754789572989,4.4355448,4307.2,4307.1,0.6411]
[1754789573185,2.01785959,4307.2,4307.1,1.0007]
[1754789573395,4.00592966,4307.2,4307.1,1.9483]
[1754789573590,4.53542966,4307.2,4307.1,1.9483]
[1754789573989,4.53542966,4307.2,4307.1,2.41251]
[1754789574196,5.07925699,4307.2,4307.1,2.41251]
[1754789574390,0.3937,4307.5,4307.1,2.41251]
[1754789574391,0.9232,4307.5,4307.1,2.94251]
[1754789574590,0.3629,4307.4,4307.3,1.0007]
[1754789574790,3.5152543,4307.4,4307.3,1.9483]
[1754789574985,3.5152543,4307.4,4307.3,2.4783]
[1754789575397,2.9857543,4307.4,4307.3,2.4783]
[1754789575694,0.8924,4307.4,4307.3,2.4783]
[1754789575895,2.4529,4307.4,4307.3,1.4276]
[1754789576094,2.4529,4307.4,4307.3,0.2776]
[1754789576298,1.5616,4307.4,4307.3,0.2776]
[1754789576491,1.5616,4307.4,4307.3,1.9483]
[1754789576698,2.4529,4307.4,4307.3,1.9483]
[1754789577197,1.55382559,4307.8,4307.7,1.0007]
[1754789577387,1.01,4307.8,4307.4,3.58969999]
[1754789577791,0.46411,4308.0,4307.5,0.9476]
[1754789577998,2.4529,4307.6,4307.5,1.9483]
[1754789578699,1.5395,4307.6,4307.5,2.4783]
[1754789579495,2.0592,4307.6,4307.5,2.4783]
[1754789579694,1.5395,4307.6,4307.5,2.4783]
[1754789579899,2.4529,4307.6,4307.5,2.4783]
[1754789580201,2.4529,4307.6,4307.5,6.06799999]
[1754789580904,2.4529,4307.6,4307.5,3.58969999]
[1754789581396,5.43374702,4307.6,4307.5,3.58969999]
[1754789581598,5.97757261,4307.6,4307.5,3.58969999]
[1754789582095,1.7837,4306.5,4306.4,3.2078]
[1754789582493,1.7837,4306.5,4306.4,0.5564]
[1754789582699,4.85829247,4306.5,4306.4,0.5564]
[1754789583001,5.40217693,4306.5,4306.4,0.5564]
[1754789583599,1.7837,4306.1,4306.0,0.6372]
[1754789583996,1.7837,4306.1,4306.0,1.0007]
[1754789584298,1.7837,4306.1,4306.0,1.5571]
[1754789584598,1.2542,4306.1,4306.0,2.5047]
[1754789585002,1.2542,4306.1,4306.0,6.09439999]
[1754789585301,1.2644,4306.1,4306.0,6.09439999]
[1754789585895,4.87101406,4306.1,4306.0,3.58969999]
[1754789586400,5.41550204,4306.1,4306.0,3.58969999]
[1754789586999,11.92028026,4306.1,4305.0,0.5589]
[1754789587207,0.2826,4305.1,4305.0,2.5077]
[1754789587503,0.1739,4305.1,4305.0,2.5077]
[1754789588399,3.42780719,4305.1,4304.7,3.2078]
[1754789588599,0.46456,4303.8,4303.5,0.005]
[1754789588800,4.45490739,4304.0,4303.5,0.3523]
[1754789589004,2.96338719,4303.7,4303.6,1.9488]
[1754789589206,3.50787517,4303.9,4303.6,1.0098]
[1754789589503,0.54448798,4303.9,4303.7,1.2602]
[1754789589701,3.03249271,4303.8,4303.7,1.5457]
[1754789590098,3.03249271,4303.9,4303.8,1.9488]
[1754789590399,0.54418664,4304.5,4304.4,1.2602]
[1754789590596,3.2078,4304.6,4304.5,1.0948]
[1754789590901,6.16621859,4304.6,4304.5,1.0948]
[1754789591096,6.71040523,4304.6,4304.5,1.0948]
[1754789591298,6.71040523,4304.6,4304.5,2.5077]
[1754789591605,6.71040523,4304.6,4304.5,2.1046]
[1754789591796,6.71040523,4304.6,4304.5,0.5589]
[1754789591995,6.71040523,4304.6,4304.5,2.1046]
[1754789592201,6.71040523,4304.6,4304.5,2.5077]
[1754789592593,6.71040523,4304.6,4304.5,2.1046]
[1754789593393,0.46449,4304.5,4303.8,0.9062]
[1754789593602,0.54418664,4304.5,4303.8,1.37076]
[1754789593803,3.04799386,4304.4,4303.8,1.90666]
[1754789594003,3.04799386,4304.4,4304.1,2.5077]
[1754789594299,3.04799386,4304.4,4304.3,0.5589]
[1754789594701,3.0627522,4304.5,4304.4,0.5589]
[1754789594904,3.2078,4304.6,4304.4,2.5077]
[1754789595106,3.2078,4304.6,4304.5,2.1046]
[1754789595405,6.29044336,4304.6,4304.5,5.69429999]
[1754789596304,3.08264336,4304.6,4304.5,5.69429999]
[1754789596506,3.08264336,4304.6,4304.5,5.18449999]
[1754789596702,3.07091323,4305.0,4304.6,0.9062]
[1754789596905,3.2078,4305.1,4304.9,0.5589]
[1754789597100,3.53534323,4305.0,4304.6,1.0948]
[1754789597296,3.53534323,4305.0,4304.7,0.5589]
[1754789597801,3.07091323,4305.0,4304.7,0.5589]
[1754789598000,3.07091323,4305.0,4304.9,2.1046]
[1754789598195,3.07091323,4305.0,4304.9,2.5077]
[1754789598396,33.443,4305.4,4304.9,2.5077]
[1754789598397,3.2078,4305.6,4304.9,2.5077]
[1754789598600,3.03743179,4305.3,4305.1,0.5589]
[1754789598803,3.03743179,4305.5,4305.2,0.5589]
[1754789599002,3.67217,4305.6,4304.9,0.81174]
[1754789599305,3.07894995,4305.5,4305.3,0.5589]
[1754789600007,3.07894995,4305.5,4305.0,0.5]
[1754789600008,0.46439,4305.4,4305.0,0.5]
[1754789600209,0.46439,4305.4,4305.1,0.5589]
[1754789600409,3.00207271,4305.3,4305.1,0.5589]
[1754789600602,3.00207271,4305.3,4304.9,0.8832]
[1754789600802,3.00207271,4305.4,4305.2,0.5589]
[1754789601105,3.00207271,4305.5,4305.4,0.5589]
[1754789601407,3.67217,4305.6,4305.4,0.5589]
[1754789601601,3.67217,4305.6,4305.2,1.5457]
[1754789601909,3.54106482,4305.5,4305.2,1.5457]
[1754789602208,3.07668482,4305.5,4305.4,1.0098]
[1754789602505,3.2078,4306.3,4306.2,1.0098]
[1754789602700,3.2078,4306.3,4306.2,2.5077]
[1754789602908,6.18594635,4306.3,4306.2,2.5077]
[1754789603106,2.97814635,4306.3,4306.2,2.5077]
[1754789603412,3.01073896,4306.4,4306.2,1.0098]
[1754789603705,0.00428925,4306.5,4306.3,1.4129]
[1754789603907,0.00428925,4306.5,4306.4,2.97198]
[1754789604315,3.00068938,4306.5,4306.4,2.5077]
[1754789604603,3.00068938,4306.5,4306.4,2.1046]
[1754789605111,3.00068938,4306.5,4306.4,2.5077]
[1754789605312,3.00068938,4306.5,4306.4,6.09739999]
[1754789606406,0.00428925,4306.5,4306.4,6.09739999]
[1754789606817,3.2078,4307.4,4307.3,2.5077]
[1754789607108,6.22663497,4307.4,4307.3,2.5077]
[1754789607310,3.01883497,4307.4,4307.3,2.5077]
[1754789607512,2.01313497,4307.4,4307.3,2.5077]
[1754789607706,0.3928,4308.2,4307.3,2.5077]
[1754789607707,0.6223,4307.6,4307.5,2.5077]
[1754789608013,1.0151,4307.6,4307.5,2.5077]
[1754789608216,0.99099,4308.2,4307.5,2.5077]
[1754789608408,0.6635,4307.9,4307.8,0.6625]
[1754789608608,0.3928,4308.5,4307.8,0.4031]
[1754789608809,0.3516,4308.0,4307.9,2.1046]
[1754789609116,4.05656192,4308.0,4307.9,2.5077]
[1754789609616,3.04146192,4308.0,4307.9,2.5077]
[1754789610124,1.0151,4308.3,4308.2,2.5077]
[1754789610516,4.02102026,4308.3,4308.2,2.5077]
[1754789610825,4.54792026,4308.3,4308.2,2.1046]
[1754789611924,3.35752026,4308.3,4308.2,2.5077]
[1754789612128,1.0151,4308.3,4308.2,2.5077]
[1754789612328,4.60578436,4308.3,4308.2,1.0948]
[1754789612522,3.68608436,4308.3,4308.0,1.0948]
[1754789612825,1.2713,4308.1,4308.0,1.0948]
[1754789613021,1.542,4308.1,4307.9,3.58969999]
[1754789613225,1.0151,4308.0,4307.9,3.96669999]
[1754789613420,1.542,4308.0,4307.9,3.58969999]
[1754789613731,4.57152143,4308.0,4307.9,4.59949999]
[1754789614030,4.57152143,4308.0,4307.9,5.69429999]
[1754789614426,4.57152143,4308.0,4307.9,5.40879999]
[1754789614730,4.57152143,4308.0,4307.9,3.58969999]
[1754789615225,4.62242143,4308.0,4307.9,3.58969999]
[1754789616230,26.28142143,4308.0,4307.9,3.58969999]
[1754789616628,0.364,4306.9,4306.8,2.1136]
[1754789616823,0.364,4306.9,4306.8,2.5165]
[1754789617025,3.91606004,4306.9,4306.8,2.5165]
[1754789617330,3.91606004,4306.9,4306.6,3.2078]
[1754789617331,0.9518,4306.7,4306.6,4.3185]
[1754789617636,3.91103957,4306.7,4306.6,5.7243]
[1754789617925,3.37413957,4306.7,4306.6,5.7243]
[1754789619229,3.35453957,4306.7,4306.6,5.7243]
[1754789619933,3.2078,4307.2,4307.1,0.3601]
[1754789620240,3.2078,4307.2,4307.1,2.5165]
[1754789620628,0.54218582,4307.9,4307.1,2.5165]
[1754789620629,0.2895,4307.9,4307.8,2.5165]
[1754789620927,3.2078,4308.3,4308.2,2.5165]
[1754789621123,3.2078,4308.9,4308.8,2.98052]
[1754789621328,0.415,4309.8,4309.2,0.9571]
[1754789621329,3.2078,4309.4,4309.2,0.9571]
[1754789621624,3.2078,4309.9,4309.7,0.46392]
[1754789621829,3.2078,4309.9,4309.8,1.5136]
[1754789622027,3.2078,4310.4,4309.9,1.5136]
[1754789622332,3.2078,4310.4,4310.3,1.5136]
[1754789622531,3.2078,4311.6,4310.9,0.5565]
[1754789622731,3.2078,4311.6,4311.2,0.4029]
[1754789622933,3.2078,4311.6,4311.1,0.46378]
[1754789623130,1.00057,4312.2,4309.5,1.15988]
[1754789623131,3.2078,4312.2,4311.5,3.2078]
[1754789623335,1.00052,4312.6,4311.6,1.1401]
[1754789623530,4.53843363,4312.1,4312.0,3.2078]
[1754789623728,1.489,4312.1,4312.0,3.2372]
[1754789623929,1.489,4312.1,4312.0,3.7937]
[1754789624431,1.489,4312.1,4312.0,3.2078]
[1754789624640,0.9519,4311.9,4311.2,3.2078]
[1754789624935,0.9519,4311.9,4311.3,0.5565]
[1754789625124,0.5369,4311.9,4311.5,1.1107]
[1754789625328,0.5369,4311.9,4311.5,1.1401]
[1754789625629,1.489,4311.9,4311.6,0.5565]
[1754789625931,1.489,4311.9,4311.5,0.5542]
[1754789625932,0.46367,4312.2,4311.4,3.58969999]
[1754789626235,3.04870474,4311.8,4311.5,0.5542]
[1754789626432,0.9521,4311.8,4311.6,0.5859]
[1754789626636,0.46372,4311.6,4311.4,3.58969999]
[1754789626829,0.46372,4311.6,4311.4,3.61909999]
[1754789627028,1.489,4311.5,4311.4,4.17559999]
[1754789627228,4.49016428,4311.5,4311.4,4.17559999]
[1754789627434,4.49016428,4311.5,4311.4,3.58969999]
[1754789628230,3.95306428,4311.5,4311.4,3.58969999]
[1754789628728,3.95306428,4311.5,4310.3,0.0294]
[1754789628729,10.49016428,4311.5,4310.3,0.0294]
[1754789629034,3.2078,4311.0,4310.3,0.0294]
[1754789629229,0.46384,4310.6,4310.3,0.0294]
[1754789629430,0.46386,4310.3,4309.9,0.4029]
[1754789629633,1.489,4310.2,4310.0,0.4029]
[1754789629938,3.45417277,4310.2,4310.1,0.4029]
[1754789630133,0.87888,4310.1,4309.9,0.9594]
[1754789630332,1.489,4310.1,4309.7,3.2078]
[1754789630635,3.00082666,4310.0,4309.9,0.9594]
[1754789631032,3.00082666,4310.0,4309.9,1.5136]
[1754789631227,3.53772666,4310.0,4309.9,0.9594]
[1754789631434,1.074,4309.9,4309.8,0.9594]
[1754789631640,2.99533129,4310.2,4309.8,1.5136]
[1754789631831,2.99533129,4309.9,4309.8,0.5542]
[1754789632141,0.5369,4310.1,4309.9,0.5542]
[1754789632438,3.58169316,4310.7,4310.3,1.5136]
[1754789632632,3.58169316,4310.7,4310.4,1.1107]
[1754789632936,0.5369,4310.7,4310.6,0.9594]
[1754789633333,3.58169316,4310.7,4310.6,0.9594]
[1754789633531,4.53379316,4310.7,4310.6,0.9594]
[1754789633732,4.53379316,4310.7,4310.6,0.4029]
[1754789634335,1.53783,4310.6,4310.2,3.2078]
[1754789634635,1.074,4310.0,4309.9,5.10329999]
[1754789634938,0.46388,4310.2,4310.1,0.9594]
[1754789635133,1.95288,4310.2,4310.1,0.9594]
[1754789635438,4.91651058,4310.2,4310.1,0.9594]
[1754789635637,5.45645802,4310.2,4310.1,0.9594]
[1754789635935,4.57757802,4310.2,4310.1,0.9594]
[1754789636135,0.53994744,4310.2,4310.1,1.5136]
[1754789636336,0.53994744,4310.2,4309.7,3.2078]
[1754789636337,0.46379,4311.0,4310.4,1.5136]
[1754789636537,0.46382,4310.7,4310.5,0.4029]
[1754789636734,1.00072,4310.7,4310.6,0.9594]
[1754789636933,2.97024638,4311.0,4310.2,6.79749999]
[1754789637139,0.46378,4311.1,4310.8,1.5136]
[1754789637331,1.00068,4311.1,4310.7,3.2078]
[1754789637641,1.00088,4311.1,4311.0,0.9594]